fUSD/lending_fUSD_20250530
["ID","MTS","AMOUNT","RATE_DAILY","PERIOD"]
[363110237,1748584231624,-509.6035932,0.00020999,2]
[363110342,1748584237381,-408.85176986,0.00020999,2]
[363110345,1748584238225,-281.54463694,0.00020999,2]
[363110346,1748584238235,-2652.98174242,0.00021,2]
[363110347,1748584238368,-7347.01825758,0.00021,2]
[363110348,1748584238378,-300.0,0.00021355,2]
[363110349,1748584238388,-500.0,0.00021356,2]
[363110350,1748584238398,-168.4718699,0.00021817,2]
[363110351,1748584238407,-168.4718699,0.00021895,2]
[363110352,1748584238417,-157.29345875,0.000219,2]
[363110353,1748584238426,-157.29345875,0.000219,2]
[363110354,1748584238436,-157.29345875,0.00021908,2]
[363110355,1748584238446,-420.0,0.00021917,2]
[363110356,1748584238455,-420.0,0.00021917,2]
[363110357,1748584238467,-420.0,0.00021917,2]
[363110358,1748584238477,-420.0,0.00021917,2]
[363110360,1748584238487,-450.53,0.00021917,2]
[363110362,1748584238496,-312.09307271,0.00021917,2]
[363110364,1748584238506,-420.0,0.00021917,2]
[363110366,1748584238515,-420.0,0.00021917,2]
[363110368,1748584238524,-420.0,0.00021917,2]
[363110370,1748584238534,-437.65,0.00021917,2]
[363110372,1748584238544,-420.0,0.00021917,2]
[363110374,1748584238554,-420.0,0.00021917,2]
[363110376,1748584238563,-420.0,0.00021917,2]
[363110378,1748584238573,-420.0,0.00021917,2]
[363110380,1748584238583,-420.0,0.00021917,2]
[363110382,1748584238592,-420.0,0.00021917,2]
[363110385,1748584238602,-420.0,0.00021917,2]
[363110386,1748584238612,-420.0,0.00021917,2]
[363110388,1748584238622,-420.0,0.00021917,2]
[363110390,1748584238632,-420.0,0.00021917,2]
[363110392,1748584238641,-420.0,0.00021917,2]
[363110394,1748584238650,-420.0,0.00021917,2]
[363110396,1748584238659,-420.0,0.00021917,2]
[363110398,1748584238669,-420.0,0.00021917,2]
[363110400,1748584238678,-420.0,0.00021917,2]
[363110402,1748584238687,-523.99,0.00021917,2]
[363110404,1748584238696,-420.0,0.00021917,2]
[363110406,1748584238708,-617.41,0.00021917,2]
[363110408,1748584238718,-420.0,0.00021917,2]
[363110410,1748584238727,-468.67,0.00021917,2]
[363110412,1748584238736,-420.0,0.00021917,2]
[363110414,1748584238746,-1269.0,0.00021917,2]
[363110416,1748584238756,-420.0,0.00021917,2]
[363110418,1748584238766,-650.68,0.00021917,2]
[363110420,1748584238775,-420.0,0.00021917,2]
[363110422,1748584238790,-420.0,0.00021917,2]
[363110439,1748584239072,-420.0,0.00021917,2]
[363110440,1748584239082,-1078.44,0.00021917,2]
[363110441,1748584239092,-1199.95,0.00021917,2]
[363110442,1748584239101,-420.0,0.00021917,2]
[363110444,1748584239111,-420.0,0.00021917,2]
[363110445,1748584239123,-532.28,0.00021917,2]
[363110446,1748584239133,-511.67,0.00021917,2]
[363110447,1748584239143,-420.0,0.00021917,2]
[363110448,1748584239152,-822.18,0.00021917,2]
[363110449,1748584239162,-420.0,0.00021917,2]
[363110450,1748584239172,-598.34,0.00021917,2]
[363110451,1748584239181,-769.7,0.00021917,2]
[363110452,1748584239191,-420.0,0.00021917,2]
[363110454,1748584239200,-420.0,0.00021917,2]
[363110455,1748584239209,-420.0,0.00021917,2]
[363110456,1748584239219,-1165.0,0.00021917,2]
[363110457,1748584239228,-625.94,0.00021917,2]
[363110458,1748584239237,-798.8,0.00021917,2]
[363110459,1748584239247,-420.0,0.00021917,2]
[363110460,1748584239256,-420.0,0.00021917,2]
[363110461,1748584239266,-420.0,0.00021917,2]
[363110462,1748584239276,-420.0,0.00021917,2]
[363110463,1748584239285,-420.0,0.00021917,2]
[363110464,1748584239295,-420.0,0.00021917,2]
[363110465,1748584239305,-512.51,0.00021917,2]
[363110466,1748584239314,-420.0,0.00021917,2]
[363110467,1748584239324,-1799.22,0.00021917,2]
[363110468,1748584239333,-576.74,0.00021917,2]
[363110469,1748584239343,-420.0,0.00021917,2]
[363110470,1748584239353,-420.0,0.00021917,2]
[363110471,1748584239363,-1025.38,0.00021917,2]
[363110472,1748584239374,-816.14,0.00021917,2]
[363110473,1748584239383,-476.17,0.00021917,2]
[363110474,1748584239393,-739.23,0.00021917,2]
[363110475,1748584239402,-500.65,0.00021917,2]
[363110476,1748584239411,-332.1036464,0.00021917,2]
[363110477,1748584239420,-1559.38,0.00021917,2]
[363110478,1748584239430,-420.0,0.00021917,2]
[363110479,1748584239439,-420.0,0.00021917,2]
[363110481,1748584239448,-865.64,0.00021917,2]
[363110482,1748584239456,-420.0,0.00021917,2]
[363110484,1748584239465,-420.0,0.00021917,2]
[363110486,1748584239476,-610.46,0.00021917,2]
[363110488,1748584239484,-997.9,0.00021917,2]
[363110490,1748584239493,-420.0,0.00021917,2]
[363110492,1748584239502,-440.74,0.00021917,2]
[363110493,1748584239511,-822.28,0.00021917,2]
[363110494,1748584239520,-420.0,0.00021917,2]
[363110496,1748584239529,-420.0,0.00021917,2]
[363110497,1748584239537,-1443.74,0.00021917,2]
[363110498,1748584239546,-420.0,0.00021917,2]
[363110499,1748584239554,-572.23,0.00021917,2]
[363110500,1748584239563,-712.24,0.00021917,2]
[363110502,1748584239572,-522.31,0.00021917,2]
[363110504,1748584239581,-420.0,0.00021917,2]
[363110505,1748584239590,-678.8,0.00021917,2]
[363110506,1748584239599,-420.0,0.00021917,2]
[363110507,1748584239608,-598.79,0.00021917,2]
[363110508,1748584239618,-1145.27,0.00021917,2]
[363110509,1748584239628,-746.77,0.00021917,2]
[363110510,1748584239637,-584.67,0.00021917,2]
[363110511,1748584239646,-1097.21,0.00021917,2]
[363110512,1748584239655,-183.81620732,0.00021917,2]
[363110513,1748584239664,-420.0,0.00021917,2]
[363110514,1748584239674,-1132.6,0.00021917,2]
[363110515,1748584239683,-535.58,0.00021917,2]
[363110516,1748584239692,-420.0,0.00021917,2]
[363110517,1748584239703,-420.0,0.00021917,2]
[363110518,1748584239714,-420.0,0.00021917,2]
[363110519,1748584239723,-557.83,0.00021917,2]
[363110520,1748584239732,-420.0,0.00021917,2]
[363110521,1748584239741,-741.23,0.00021917,2]
[363110522,1748584239751,-518.88,0.00021917,2]
[363110523,1748584239761,-771.75,0.00021917,2]
[363110524,1748584239770,-519.22,0.00021917,2]
[363110525,1748584239780,-753.51,0.00021917,2]
[363110526,1748584239790,-1038.57,0.00021917,2]
[363110527,1748584239800,-895.69,0.00021917,2]
[363110528,1748584239809,-420.0,0.00021917,2]
[363110529,1748584239818,-471.57,0.00021917,2]
[363110530,1748584239827,-303.11110677,0.00021917,2]
[363110531,1748584239836,-690.79,0.00021917,2]
[363110532,1748584239845,-420.0,0.00021917,2]
[363110533,1748584239854,-607.82,0.00021917,2]
[363110534,1748584239863,-420.0,0.00021917,2]
[363110535,1748584239876,-1176.13,0.00021917,2]
[363110536,1748584239886,-1434.49,0.00021917,2]
[363110537,1748584239895,-1162.83,0.00021917,2]
[363110538,1748584239905,-606.74,0.00021917,2]
[363110539,1748584239914,-462.61,0.00021917,2]
[363110540,1748584239923,-420.0,0.00021917,2]
[363110541,1748584239932,-1284.68,0.00021917,2]
[363110542,1748584239941,-659.49,0.00021917,2]
[363110543,1748584239950,-731.33,0.00021917,2]
[363110544,1748584239960,-170.3644901,0.00021917,2]
[363110545,1748584239969,-1254.04,0.00021917,2]
[363110546,1748584239979,-420.0,0.00021917,2]
[363110547,1748584239988,-542.28,0.00021917,2]
[363110548,1748584239997,-953.99,0.00021917,2]
[363110549,1748584240007,-420.0,0.00021917,2]
[363110550,1748584240016,-452.82,0.00021917,2]
[363110551,1748584240026,-885.55,0.00021917,2]
[363110552,1748584240035,-611.53,0.00021917,2]
[363110553,1748584240044,-528.62,0.00021917,2]
[363110554,1748584240054,-499.09,0.00021917,2]
[363110555,1748584240063,-420.0,0.00021917,2]
[363110557,1748584240072,-1262.18,0.00021917,2]
[363110559,1748584240082,-817.7,0.00021917,2]
[363110561,1748584240092,-1324.62,0.00021917,2]
[363110563,1748584240101,-420.0,0.00021917,2]
[363110565,1748584240110,-203.16954427,0.00021917,2]
[363110567,1748584240122,-420.0,0.00021917,2]
[363110569,1748584240132,-901.66,0.00021917,2]
[363110570,1748584240141,-687.53,0.00021917,2]
[363110571,1748584240151,-1045.34,0.00021917,2]
[363110572,1748584240160,-589.89,0.00021917,2]
[363110573,1748584240170,-420.0,0.00021917,2]
[363110574,1748584240179,-573.08,0.00021917,2]
[363110575,1748584240189,-1239.65,0.00021917,2]
[363110576,1748584240198,-830.3,0.00021917,2]
[363110577,1748584240208,-420.0,0.00021917,2]
[363110578,1748584240217,-420.0,0.00021917,2]
[363110579,1748584240226,-420.0,0.00021917,2]
[363110580,1748584240236,-432.65,0.00021917,2]
[363110581,1748584240245,-420.0,0.00021917,2]
[363110582,1748584240255,-601.64,0.00021917,2]
[363110583,1748584240264,-482.49,0.00021917,2]
[363110584,1748584240274,-1593.01,0.00021917,2]
[363110585,1748584240283,-928.17,0.00021917,2]
[363110586,1748584240292,-1015.37,0.00021917,2]
[363110587,1748584240302,-420.0,0.00021917,2]
[363110588,1748584240311,-426.68,0.00021917,2]
[363110589,1748584240320,-706.88,0.00021917,2]
[363110590,1748584240330,-1095.2,0.00021917,2]
[363110591,1748584240342,-654.66,0.00021917,2]
[363110592,1748584240351,-619.9,0.00021917,2]
[363110593,1748584240361,-420.0,0.00021917,2]
[363110594,1748584240374,-420.0,0.00021917,2]
[363110595,1748584240383,-1290.91,0.00021917,2]
[363110596,1748584240392,-434.66,0.00021917,2]
[363110597,1748584240402,-465.1,0.00021917,2]
[363110598,1748584240411,-420.0,0.00021917,2]
[363110599,1748584240421,-527.08,0.00021917,2]
[363110600,1748584240430,-742.73,0.00021917,2]
[363110601,1748584240440,-554.78,0.00021917,2]
[363110602,1748584240449,-420.0,0.00021917,2]
[363110603,1748584240459,-420.0,0.00021917,2]
[363110604,1748584240468,-2277.01,0.00021917,2]
[363110605,1748584240477,-494.86,0.00021917,2]
[363110606,1748584240486,-420.0,0.00021917,2]
[363110607,1748584240495,-917.59,0.00021917,2]
[363110608,1748584240505,-420.0,0.00021917,2]
[363110609,1748584240514,-984.71,0.00021917,2]
[363110610,1748584240523,-420.0,0.00021917,2]
[363110611,1748584240533,-1235.03,0.00021917,2]
[363110612,1748584240542,-420.0,0.00021917,2]
[363110613,1748584240551,-656.79,0.00021917,2]
[363110614,1748584240560,-590.09,0.00021917,2]
[363110615,1748584240569,-1170.22,0.00021917,2]
[363110616,1748584240579,-420.0,0.00021917,2]
[363110617,1748584240587,-420.0,0.00021917,2]
[363110618,1748584240597,-420.0,0.00021917,2]
[363110619,1748584240606,-1906.69,0.00021917,2]
[363110620,1748584240617,-286.34003844,0.00021917,2]
[363110621,1748584240626,-873.44,0.00021917,2]
[363110622,1748584240635,-550.1,0.00021917,2]
[363110623,1748584240644,-431.65,0.00021917,2]
[363110624,1748584240653,-420.0,0.00021917,2]
[363110625,1748584240662,-1270.09,0.00021917,2]
[363110626,1748584240671,-1367.86,0.00021917,2]
[363110627,1748584240681,-420.0,0.00021917,2]
[363110628,1748584240689,-965.95,0.00021917,2]
[363110629,1748584240698,-1002.28,0.00021917,2]
[363110630,1748584240710,-420.0,0.00021917,2]
[363110631,1748584240719,-420.0,0.00021917,2]
[363110632,1748584240728,-1118.13,0.00021917,2]
[363110633,1748584240738,-1205.89,0.00021917,2]
[363110634,1748584240749,-420.0,0.00021917,2]
[363110635,1748584240758,-420.0,0.00021917,2]
[363110636,1748584240767,-420.0,0.00021917,2]
[363110637,1748584240777,-420.0,0.00021917,2]
[363110638,1748584240788,-420.0,0.00021917,2]
[363110639,1748584240798,-420.0,0.00021917,2]
[363110640,1748584240807,-420.0,0.00021917,2]
[363110641,1748584240816,-456.98,0.00021917,2]
[363110642,1748584240825,-420.0,0.00021917,2]
[363110643,1748584240834,-420.0,0.00021917,2]
[363110644,1748584240844,-474.73,0.00021917,2]
[363110645,1748584240853,-420.0,0.00021917,2]
[363110646,1748584240863,-466.83,0.00021917,2]
[363110647,1748584240875,-420.0,0.00021917,2]
[363110648,1748584240885,-1530.54,0.00021917,2]
[363110649,1748584240895,-519.47,0.00021917,2]
[363110650,1748584240904,-420.0,0.00021917,2]
[363110651,1748584240913,-756.12,0.00021917,2]
[363110652,1748584240923,-420.0,0.00021917,2]
[363110653,1748584240932,-703.76,0.00021917,2]
[363110654,1748584240942,-420.0,0.00021917,2]
[363110655,1748584240953,-648.47,0.00021917,2]
[363110656,1748584240962,-421.07,0.00021917,2]
[363110657,1748584240972,-864.91,0.00021917,2]
[363110658,1748584240981,-713.17,0.00021917,2]
[363110659,1748584240990,-898.39,0.00021917,2]
[363110660,1748584241000,-420.0,0.00021917,2]
[363110661,1748584241009,-420.0,0.00021917,2]
[363110662,1748584241019,-420.0,0.00021917,2]
[363110663,1748584241028,-525.2,0.00021917,2]
[363110664,1748584241038,-420.0,0.00021917,2]
[363110665,1748584241047,-420.0,0.00021917,2]
[363110666,1748584241057,-474.17,0.00021917,2]
[363110667,1748584241067,-1207.25,0.00021917,2]
[363110668,1748584241076,-630.83,0.00021917,2]
[363110669,1748584241087,-420.0,0.00021917,2]
[363110670,1748584241096,-420.0,0.00021917,2]
[363110671,1748584241106,-420.0,0.00021917,2]
[363110672,1748584241117,-519.98,0.00021917,2]
[363110673,1748584241127,-1044.22,0.00021917,2]
[363110674,1748584241136,-420.0,0.00021917,2]
[363110675,1748584241146,-420.0,0.00021917,2]
[363110676,1748584241155,-961.44,0.00021917,2]
[363110677,1748584241164,-1400.42,0.00021917,2]
[363110678,1748584241174,-420.0,0.00021917,2]
[363110679,1748584241183,-1040.47,0.00021917,2]
[363110680,1748584241194,-832.73,0.00021917,2]
[363110681,1748584241204,-420.0,0.00021917,2]
[363110682,1748584241214,-420.0,0.00021917,2]
[363110683,1748584241223,-420.0,0.00021917,2]
[363110684,1748584241233,-420.0,0.00021917,2]
[363110685,1748584241243,-622.28,0.00021917,2]
[363110686,1748584241252,-1425.78,0.00021917,2]
[363110687,1748584241262,-1698.07,0.00021917,2]
[363110688,1748584241271,-1079.04,0.00021917,2]
[363110689,1748584241281,-690.98,0.00021917,2]
[363110690,1748584241291,-680.34,0.00021917,2]
[363110691,1748584241300,-740.94,0.00021917,2]
[363110692,1748584241310,-484.33,0.00021917,2]
[363110693,1748584241319,-420.0,0.00021917,2]
[363110694,1748584241329,-420.0,0.00021917,2]
[363110695,1748584241340,-574.34,0.00021917,2]
[363110696,1748584241350,-420.0,0.00021917,2]
[363110697,1748584241360,-7670.16,0.00021917,2]
[363110698,1748584241371,-420.0,0.00021917,2]
[363110699,1748584241380,-361.68224759,0.00021917,2]
[363110700,1748584241390,-443.74,0.00021917,2]
[363110701,1748584241400,-788.5,0.00021917,2]
[363110702,1748584241411,-420.0,0.00021917,2]
[363110703,1748584241421,-1568.05,0.00021917,2]
[363110704,1748584241430,-300.0,0.00021917,2]
[363110705,1748584241440,-420.0,0.00021917,2]
[363110706,1748584241449,-1219.63,0.00021917,2]
[363110707,1748584241459,-420.0,0.00021917,2]
[363110708,1748584241468,-780.91,0.00021917,2]
[363110709,1748584241479,-420.0,0.00021917,2]
[363110710,1748584241488,-420.0,0.00021917,2]
[363110711,1748584241498,-420.0,0.00021917,2]
[363110712,1748584241508,-527.22,0.00021917,2]
[363110713,1748584241519,-420.0,0.00021917,2]
[363110714,1748584241529,-514.55,0.00021917,2]
[363110715,1748584241540,-420.0,0.00021917,2]
[363110716,1748584241550,-918.92,0.00021917,2]
[363110717,1748584241561,-420.0,0.00021917,2]
[363110718,1748584241571,-472.87,0.00021917,2]
[363110719,1748584241580,-1023.42,0.00021917,2]
[363110720,1748584241590,-420.0,0.00021917,2]
[363110721,1748584241608,-428.94,0.00021917,2]
[363110722,1748584241619,-1016.54,0.00021917,2]
[363110723,1748584241629,-1165.9,0.00021917,2]
[363110724,1748584241639,-16291.37,0.00021917,2]
[363110725,1748584241648,-7268.41,0.00021917,2]
[363110726,1748584241658,-440.94,0.00021917,2]
[363110727,1748584241668,-1142.72,0.00021917,2]
[363110728,1748584241678,-420.0,0.00021917,2]
[363110729,1748584241687,-420.0,0.00021917,2]
[363110730,1748584241697,-2173.11,0.00021917,2]
[363110731,1748584241709,-420.0,0.00021917,2]
[363110732,1748584241719,-420.0,0.00021917,2]
[363110733,1748584241729,-1027.96,0.00021917,2]
[363110734,1748584241738,-420.0,0.00021917,2]
[363110735,1748584241749,-500.0,0.00021917,2]
[363110736,1748584241759,-500.0,0.00021917,2]
[363110737,1748584241768,-500.0,0.00021917,2]
[363110738,1748584241778,-560.93,0.00021917,2]
[363110739,1748584241788,-906.34,0.00021917,2]
[363110740,1748584241799,-420.0,0.00021917,2]
[363110741,1748584241809,-677.87,0.00021917,2]
[363110742,1748584241818,-1501.74,0.00021917,2]
[363110743,1748584241827,-265.78,0.00021917,2]
[363110744,1748584241837,-130363.23,0.00021917,2]
[363110745,1748584241846,-656.83,0.00021917,2]
[363110746,1748584241856,-420.0,0.00021917,2]
[363110747,1748584241866,-430.01380424,0.00021917,2]
[363110748,1748584241875,-729.86,0.00021917,2]
[363110749,1748584241885,-403.29972029,0.00021917,2]
[363110750,1748584241895,-2572.31,0.00021917,2]
[363110751,1748584241905,-420.0,0.00021917,2]
[363110752,1748584241914,-420.0,0.00021917,2]
[363110753,1748584241924,-780.76,0.00021917,2]
[363110754,1748584241934,-2172.14,0.00021917,2]
[363110755,1748584241943,-695.89,0.00021917,2]
[363110756,1748584241952,-1780.19,0.00021917,2]
[363110757,1748584241962,-3252.78,0.00021917,2]
[363110758,1748584241971,-1392.45,0.00021917,2]
[363110759,1748584241980,-420.0,0.00021917,2]
[363110760,1748584241990,-420.0,0.00021917,2]
[363110761,1748584242000,-420.0,0.00021917,2]
[363110762,1748584242009,-429.66,0.00021917,2]
[363110763,1748584242019,-1084.93,0.00021917,2]
[363110764,1748584242029,-420.0,0.00021917,2]
[363110765,1748584242038,-1970.66,0.00021917,2]
[363110766,1748584242047,-3308.2,0.00021917,2]
[363110767,1748584242057,-420.0,0.00021917,2]
[363110768,1748584242067,-256.8506503,0.00021917,2]
[363110769,1748584242076,-461.87,0.00021917,2]
[363110770,1748584242086,-1784.65,0.00021917,2]
[363110771,1748584242096,-420.0,0.00021917,2]
[363110772,1748584242106,-420.0,0.00021917,2]
[363110773,1748584242116,-500.0,0.00021917,2]
[363110774,1748584242127,-559.56,0.00021917,2]
[363110775,1748584242136,-384.88494013,0.00021917,2]
[363110776,1748584242146,-420.0,0.00021917,2]
[363110777,1748584242155,-898.96,0.00021917,2]
[363110778,1748584242165,-543.51,0.00021917,2]
[363110779,1748584242175,-850.91,0.00021917,2]
[363110780,1748584242184,-7716.17,0.00021917,2]
[363110781,1748584242194,-420.0,0.00021917,2]
[363110782,1748584242204,-1610.91,0.00021917,2]
[363110783,1748584242213,-420.0,0.00021917,2]
[363110784,1748584242222,-161.72633216,0.00021917,2]
[363110785,1748584242232,-1520.73,0.00021917,2]
[363110786,1748584242242,-514.07,0.00021917,2]
[363110788,1748584242251,-860.64,0.00021917,2]
[363110789,1748584242260,-5355.96,0.00021917,2]
[363110790,1748584242270,-420.0,0.00021917,2]
[363110791,1748584242279,-420.0,0.00021917,2]
[363110792,1748584242289,-420.0,0.00021917,2]
[363110793,1748584242299,-2669.29,0.00021917,2]
[363110794,1748584242308,-10179.48,0.00021917,2]
[363110795,1748584242317,-734.41,0.00021917,2]
[363110796,1748584242326,-420.0,0.00021917,2]
[363110797,1748584242336,-658.82,0.00021917,2]
[363110798,1748584242345,-806.95,0.00021917,2]
[363110799,1748584242355,-10784.96,0.00021917,2]
[363110800,1748584242366,-420.0,0.00021917,2]
[363110801,1748584242375,-420.0,0.00021917,2]
[363110802,1748584242385,-1776.48,0.00021917,2]
[363110803,1748584242394,-2413.42,0.00021917,2]
[363110804,1748584242403,-420.0,0.00021917,2]
[363110805,1748584242413,-426.09,0.00021917,2]
[363110806,1748584242430,-1747.1,0.00021917,2]
[363110807,1748584242442,-1061.4,0.00021917,2]
[363110808,1748584242452,-420.0,0.00021917,2]
[363110809,1748584242462,-500.47,0.00021917,2]
[363110810,1748584242472,-420.0,0.00021917,2]
[363110811,1748584242482,-2788.27,0.00021917,2]
[363110812,1748584242492,-8128.2,0.00021917,2]
[363110813,1748584242503,-420.0,0.00021917,2]
[363110814,1748584242513,-420.0,0.00021917,2]
[363110815,1748584242523,-1260.2,0.00021917,2]
[363110816,1748584242532,-914.53,0.00021917,2]
[363110817,1748584242542,-420.0,0.00021917,2]
[363110818,1748584242552,-931.64,0.00021917,2]
[363110819,1748584242562,-1274.66,0.00021917,2]
[363110820,1748584242573,-587.94,0.00021917,2]
[363110821,1748584242583,-425.65,0.00021917,2]
[363110822,1748584242593,-688.02,0.00021917,2]
[363110823,1748584242603,-873.39,0.00021917,2]
[363110824,1748584242612,-22654.64,0.00021917,2]
[363110825,1748584242623,-420.0,0.00021917,2]
[363110826,1748584242633,-573.79,0.00021917,2]
[363110827,1748584242643,-420.0,0.00021917,2]
[363110828,1748584242652,-11181.08,0.00021917,2]
[363110829,1748584242661,-430.9,0.00021917,2]
[363110830,1748584242671,-1244.33,0.00021917,2]
[363110831,1748584242680,-420.0,0.00021917,2]
[363110832,1748584242690,-420.0,0.00021917,2]
[363110833,1748584242700,-420.0,0.00021917,2]
[363110834,1748584242716,-420.0,0.00021917,2]
[363110835,1748584242726,-420.0,0.00021917,2]
[363110836,1748584242736,-1351.08,0.00021917,2]
[363110837,1748584242747,-570.91,0.00021917,2]
[363110838,1748584242757,-1429.56,0.00021917,2]
[363110839,1748584242767,-4424.55,0.00021917,2]
[363110840,1748584242776,-3906.64,0.00021917,2]
[363110841,1748584242786,-420.0,0.00021917,2]
[363110842,1748584242797,-999.77,0.00021917,2]
[363110843,1748584242806,-420.0,0.00021917,2]
[363110844,1748584242815,-1794.39,0.00021917,2]
[363110845,1748584242826,-420.0,0.00021917,2]
[363110846,1748584242835,-420.0,0.00021917,2]
[363110847,1748584242845,-420.0,0.00021917,2]
[363110848,1748584242854,-2150.17,0.00021917,2]
[363110849,1748584242864,-526.32808357,0.00021917,2]
[363110850,1748584242875,-420.0,0.00021917,2]
[363110851,1748584242884,-806.61,0.00021917,2]
[363110852,1748584242893,-873.2,0.00021917,2]
[363110853,1748584242902,-578.64,0.00021917,2]
[363110854,1748584242911,-815.01,0.00021917,2]
[363110855,1748584242921,-891.8,0.00021917,2]
[363110856,1748584242931,-3430.75,0.00021917,2]
[363110857,1748584242940,-420.0,0.00021917,2]
[363110858,1748584242949,-1360.86,0.00021917,2]
[363110859,1748584242958,-420.0,0.00021917,2]
[363110860,1748584242968,-806.03,0.00021917,2]
[363110861,1748584242978,-420.0,0.00021917,2]
[363110862,1748584242987,-1510.22,0.00021917,2]
[363110863,1748584242997,-1250.3,0.00021917,2]
[363110864,1748584243007,-1117.6,0.00021917,2]
[363110865,1748584243016,-543.77,0.00021917,2]
[363110866,1748584243026,-1614.84,0.00021917,2]
[363110867,1748584243035,-420.0,0.00021917,2]
[363110868,1748584243045,-549.17,0.00021917,2]
[363110869,1748584243056,-420.0,0.00021917,2]
[363110870,1748584243067,-1785.88,0.00021917,2]
[363110871,1748584243078,-2145.66,0.00021917,2]
[363110872,1748584243088,-420.0,0.00021917,2]
[363110873,1748584243099,-1076.36,0.00021917,2]
[363110874,1748584243109,-462.77,0.00021917,2]
[363110875,1748584243121,-420.0,0.00021917,2]
[363110876,1748584243131,-1150.42,0.00021917,2]
[363110877,1748584243354,-681.06,0.00021917,2]
[363110878,1748584243364,-21985.04,0.00021917,2]
[363110879,1748584243375,-978.05,0.00021917,2]
[363110880,1748584243384,-420.0,0.00021917,2]
[363110881,1748584243394,-1384.47,0.00021917,2]
[363110882,1748584243404,-441.5,0.00021917,2]
[363110883,1748584243413,-2255.35,0.00021917,2]
[363110884,1748584243423,-420.0,0.00021917,2]
[363110885,1748584243432,-2685.46,0.00021917,2]
[363110886,1748584243441,-420.0,0.00021917,2]
[363110887,1748584243451,-2482.52,0.00021917,2]
[363110888,1748584243460,-420.0,0.00021917,2]
[363110889,1748584243469,-420.0,0.00021917,2]
[363110890,1748584243479,-1113.39,0.00021917,2]
[363110891,1748584243488,-698.39,0.00021917,2]
[363110892,1748584243497,-2938.9,0.00021917,2]
[363110893,1748584243507,-420.0,0.00021917,2]
[363110894,1748584243516,-1198.67,0.00021917,2]
[363110895,1748584243525,-420.0,0.00021917,2]
[363110896,1748584243534,-420.0,0.00021917,2]
[363110897,1748584243543,-270.11321727,0.00021917,2]
[363110898,1748584243553,-884.35,0.00021917,2]
[363110899,1748584243562,-683.0,0.00021917,2]
[363110900,1748584243571,-525.41,0.00021917,2]
[363110901,1748584243581,-849.38,0.00021917,2]
[363110902,1748584243591,-4528.73,0.00021917,2]
[363110903,1748584243601,-705.87,0.00021917,2]
[363110904,1748584243610,-420.0,0.00021917,2]
[363110905,1748584243623,-2740.18,0.00021917,2]
[363110906,1748584243632,-7089.98,0.00021917,2]
[363110907,1748584243642,-420.0,0.00021917,2]
[363110908,1748584243651,-3307.4,0.00021917,2]
[363110909,1748584243660,-1050.32,0.00021917,2]